fUST/lending_fUST_20260112
["ID","MTS","AMOUNT","RATE_DAILY","PERIOD"]
[401375966,1768165843497,-4705.92755579,0.00024142,2]
[401375968,1768165843507,-896.48042971,0.00024142,2]
[401375970,1768165843518,-3585.92171886,0.00024142,2]
[401375972,1768165843527,-8068.32386743,0.00024142,2]
[401375974,1768165843537,-216.477355,0.00024142,2]
[401375976,1768165843546,-216.477355,0.00024142,2]
[401375978,1768165843555,-216.477355,0.00024142,2]
[401375980,1768165843564,-216.477355,0.00024142,2]
[401375981,1768165843573,-158.288397,0.00024142,2]
[401375983,1768165843583,-151.0,0.00024142,2]
[401375986,1768165843592,-177.552931,0.00024142,2]
[401375987,1768165843602,-177.552931,0.00024142,2]
[401375989,1768165843611,-177.552931,0.00024142,2]
[401375991,1768165843621,-177.552931,0.00024142,2]
[401375993,1768165843631,-194.480203,0.00024142,2]
[401375995,1768165843641,-194.480203,0.00024142,2]
[401375997,1768165843651,-194.480203,0.00024142,2]
[401375999,1768165843661,-194.480203,0.00024142,2]
[401376001,1768165843671,-306.783496,0.00024142,2]
[401376003,1768165843681,-306.783496,0.00024142,2]
[401376005,1768165843691,-306.783496,0.00024142,2]
[401376007,1768165843703,-306.783496,0.00024142,2]
[401376009,1768165843712,-151.0,0.00024142,2]
[401376011,1768165843721,-151.0,0.00024142,2]
[401376013,1768165843731,-151.0,0.00024142,2]
[401376015,1768165843740,-232.376915,0.00024142,2]
[401376017,1768165843751,-582.663486,0.00024142,2]
[401376019,1768165843760,-582.663486,0.00024142,2]
[401376021,1768165843769,-582.663486,0.00024142,2]
[401376024,1768165843779,-582.663486,0.00024142,2]
[401376025,1768165843789,-151.0,0.00024142,2]
[401376027,1768165843798,-151.0,0.00024142,2]
[401376029,1768165843808,-151.0,0.00024142,2]
[401376031,1768165843818,-151.0,0.00024142,2]
[401376033,1768165843827,-151.0,0.00024142,2]
[401376035,1768165843836,-151.0,0.00024142,2]
[401376037,1768165843846,-151.0,0.00024142,2]
[401376039,1768165843855,-189.77985,0.00024142,2]
[401376041,1768165843864,-189.77985,0.00024142,2]
[401376043,1768165843873,-189.77985,0.00024142,2]
[401376045,1768165843883,-319.326659,0.00024142,2]
[401376048,1768165843893,-189.77985,0.00024142,2]
[401376050,1768165843903,-319.326659,0.00024142,2]
[401376052,1768165843914,-319.326659,0.00024142,2]
[401376054,1768165843924,-319.326659,0.00024142,2]
[401376056,1768165843933,-151.0,0.00024142,2]
[401376058,1768165843942,-151.0,0.00024142,2]
[401376060,1768165843952,-271.744506,0.00024142,2]
[401376062,1768165843962,-152.205819,0.00024142,2]
[401376064,1768165843971,-175.972983,0.00024142,2]
[401376067,1768165843981,-151.0,0.00024142,2]
[401376068,1768165843992,-151.0,0.00024142,2]
[401376071,1768165844002,-151.0,0.00024142,2]
[401376073,1768165844011,-151.0,0.00024142,2]
[401376075,1768165844020,-151.0,0.00024142,2]
[401376077,1768165844029,-151.0,0.00024142,2]
[401376079,1768165844038,-151.0,0.00024142,2]
[401376081,1768165844048,-22031.54599674,0.00024184,2]
[401376084,1768165844065,-3795.08613463,0.00024184,2]
[401376086,1768165844076,-772.04249589,0.00024184,2]
[401376088,1768165844087,-1023.73570649,0.00024184,2]
[401376090,1768165844098,-526.80861021,0.00024184,2]
[401376092,1768165844108,-2571.65123819,0.00024184,2]
[401376094,1768165844119,-355.81467659,0.00024184,2]
[401376097,1768165844130,-18318.84653086,0.00024184,2]
[401376099,1768165844141,-15577.12637654,0.00024184,2]
[401376100,1768165844155,-2473.00810725,0.00024184,2]
[401376103,1768165844173,-1552.53693551,0.00024184,2]
[401376331,1768165846388,-8047.93052161,0.00021644,2]
[401376333,1768165846400,-535.82645954,0.00021644,2]
[401376335,1768165846411,-11105.73730699,0.00021644,2]
[401376337,1768165846422,-113.14256476,0.00021644,2]
[401376339,1768165846432,-151.0,0.00023302,2]
[401376341,1768165846441,-73.05743524,0.00023302,2]
[401376392,1768165961164,155.0,5.98e-05,2]
[401376480,1768167032500,-559.0,9.904e-05,2]
[401376481,1768167032510,-2332.72239404,9.904e-05,2]
[401376482,1768167032519,-261.79936611,0.00010003,2]
[401376483,1768167032528,-300.0,0.00010202,2]
[401376484,1768167032538,-300.0,0.00010202,2]
[401376485,1768167032547,-1200.0,0.00010202,2]
[401376486,1768167032557,-300.0,0.00010203,2]
[401376487,1768167032567,-300.0,0.00010203,2]
[401376488,1768167032576,-300.0,0.00010203,2]
[401376489,1768167032585,-300.0,0.00010203,2]
[401376491,1768167032595,-300.0,0.00010203,2]
[401376493,1768167032604,-300.0,0.00010203,2]
[401376495,1768167032613,-300.0,0.00010203,2]
[401376497,1768167032622,-300.0,0.00010203,2]
[401376499,1768167032631,-300.0,0.00010203,2]
[401376501,1768167032640,-300.0,0.00010203,2]
[401376504,1768167032649,-300.0,0.00010203,2]
[401376507,1768167032659,-300.0,0.00010203,2]
[401376510,1768167032668,-300.0,0.00010203,2]
[401376513,1768167032676,-300.0,0.00010203,2]
[401376515,1768167032686,-300.0,0.00010203,2]
[401376517,1768167032696,-600.0,0.00010203,2]
[401376519,1768167032706,-720.0,0.00011223,2]
[401376521,1768167032715,-308.92325201,0.00012003,2]
[401376523,1768167032723,-864.0,0.00012346,2]
[401376525,1768167032733,-1000.0,0.0001358,2]
[401376527,1768167032742,-1854.233,0.00013699,2]
[401376529,1768167032751,-1231.466366,0.00013699,2]
[401376531,1768167032760,-1000.0,0.00013699,2]
[401376533,1768167032769,-500.0,0.00013699,2]
[401376535,1768167032778,-356.04713791,0.00014003,2]
[401376536,1768167032788,-1000.0,0.00014247,2]
[401376538,1768167032797,-254.36552896,0.00014795,2]
[401376540,1768167032809,-1125.97591378,0.00014795,2]
[401376543,1768167032829,-119.65855726,0.00014795,2]
[401376546,1768167032839,-1000.0,0.00014938,2]
[401376548,1768167032849,-244.0,0.00014938,2]
[401376550,1768167032858,-772.0,0.00015,2]
[401376552,1768167032867,-42.23360447,0.00015342,2]
[401376554,1768167032879,-1957.76639553,0.00015342,2]
[401376556,1768167032889,-2500.0,0.0001589,2]
[401376558,1768167032898,-403.17102381,0.00016003,2]
[401376559,1768167032907,-1000.0,0.00016432,2]
[401376560,1768167032917,-492.0,0.00016432,2]
[401376562,1768167032927,-994.74450868,0.00016438,2]
[401376614,1768167038635,-2005.25549132,0.00016438,2]
[401376616,1768167038646,-3623.1209168,0.00016986,2]
[401376618,1768167038657,-21053.27129084,0.00017,2]
[401376620,1768167038666,-450.29490971,0.00018003,2]
[401376622,1768167038677,-1000.0,0.00018076,2]
[401376624,1768167038686,-791.0,0.00018076,2]
[401376626,1768167038695,-303.10001603,0.000189,2]
[401376628,1768167038704,-502.69926409,0.000189,2]
[401376630,1768167038713,-2603.49,0.00019,2]
[401376632,1768167038722,-17960.14853983,0.00019,2]
[401376634,1768167038731,-303.10001603,0.00019089,2]
[401376636,1768167038741,-242.62689371,0.00019178,2]
[401376638,1768167038750,-303.10001603,0.00019278,2]
[401376640,1768167038758,-167.64,0.000193,2]
[401376642,1768167038767,-303.10001603,0.00019467,2]
[401376643,1768167038777,-155.5739919,0.00019648,2]
[401376646,1768167038787,-303.10001603,0.00019656,2]
[401376647,1768167038796,-304.04513064,0.00019845,4]
[401376650,1768167038806,-1000.0,0.00019883,2]
[401376651,1768167038815,-1000.0,0.00019883,2]
[401376652,1768167038824,-558.0,0.0001999,3]
[401376654,1768167038833,-5000.0,0.00019999,2]
[401376655,1768167038842,-500.0,0.00019999,2]
[401376657,1768167038851,-358.60089434,0.00019999,2]
[401376659,1768167038859,-542.54325388,0.00019999,2]
[401376660,1768167038869,-201.86240698,0.00019999,2]
[401376662,1768167038878,-542.54325388,0.00019999,2]
[401376664,1768167038887,-542.54325388,0.00019999,2]
[401376665,1768167038896,-542.54325388,0.00019999,2]
[401376667,1768167038906,-542.54325388,0.00019999,2]
[401376669,1768167038916,-542.54325388,0.00019999,2]
[401376670,1768167038925,-542.54325388,0.00019999,2]
[401376672,1768167038935,-542.54325388,0.00019999,2]
[401376674,1768167038946,-542.54325388,0.00019999,2]
[401376676,1768167038955,-542.54325388,0.00019999,2]
[401376677,1768167038965,-542.54325388,0.00019999,2]
[401376679,1768167038974,-542.54325388,0.00019999,2]
[401376680,1768167038984,-542.54325388,0.00019999,2]
[401376682,1768167038993,-542.54325388,0.00019999,2]
[401376684,1768167039003,-151.55000802,0.0002,2]
[401376686,1768167039012,-652.55120361,0.0002,2]
[401376687,1768167039022,-14696.06851441,0.0002,2]
[401376689,1768167039032,-371.48046337,0.0002,2]
[401376691,1768167039041,-717.29999854,0.0002,2]
[401376692,1768167039050,-78214.50227922,0.0002,2]
[401376694,1768167039059,-23000.0,0.0002,2]
[401376696,1768167039069,-202.6566192,0.0002,2]
[401376698,1768167039079,-504.09317231,0.0002,2]
[401376699,1768167039089,-159.95633515,0.0002,2]
[401376701,1768167039099,-3359.23,0.0002,2]
[401376703,1768167039109,-497.41879561,0.00020003,2]
[401376704,1768167039119,-1041.66666667,0.00020029,2]
[401376706,1768167039129,-485.24067775,0.0002013,2]
[401376708,1768167039139,-155.57399191,0.00020264,5]
[401376709,1768167039148,-1231.466366,0.00020548,2]
[401376711,1768167039159,-1206.9903317,0.00020586,2]
[401376713,1768167039169,-4823.13336549,0.00020586,2]
[401376715,1768167039178,-1388.8426127,0.0002061,2]
[401376716,1768167039188,-155.5739919,0.00020891,5]
[401376718,1768167039197,-256.38902735,0.000209,2]
[401376720,1768167039207,-841.2,0.00020973,2]
[401376722,1768167039217,-333.0,0.00020979,2]
[401376723,1768167039226,-100000.0,0.0002099,2]
[401376725,1768167039235,-277.25260667,0.00021,2]
[401376726,1768167039244,-299.999999,0.00021,2]
[401376728,1768167039253,-50000.0,0.00021,2]
[401376730,1768167039262,-417.0,0.00021204,2]
[401376731,1768167039271,-2515.32308142,0.00021206,2]
[401376733,1768167039280,-506.7938,0.00021229,2]
[401376735,1768167039289,-506.7938,0.00021229,3]
[401376736,1768167039299,-506.7938,0.00021229,5]
[401376738,1768167039308,-506.79,0.00021229,2]
[401376740,1768167039317,-162.99,0.000213,2]
[401376742,1768167039326,-164.08,0.000213,2]
[401376743,1768167039335,-1860.52376261,0.00021349,2]
[401376745,1768167039344,-479.0,0.00021386,2]
[401376747,1768167039354,-1039.48725245,0.000215,2]
[401376749,1768167039363,-12857.92042375,0.000215,2]
[401376751,1768167039376,-2515.32308142,0.0002155,2]
[401376753,1768167039386,-1836.6646832,0.00021669,2]
[401376754,1768167039395,-4450.445697,0.00021669,2]
[401376756,1768167039405,-2515.32308142,0.00021732,2]
[401376758,1768167039415,-1000.0,0.00021871,10]
[401376759,1768167039424,-1000.0,0.00021871,10]
[401376761,1768167039434,-579.0,0.00021871,10]
[401376763,1768167039445,-151.0,0.000219,3]
[401376765,1768167039454,-2515.32308142,0.00021979,2]
[401376767,1768167039463,-10000.0,0.00022,2]
[401376769,1768167039472,-10000.0,0.00022,2]
[401376771,1768167039482,-10000.0,0.00022,2]
[401376772,1768167039492,-10000.0,0.00022,2]
[401376774,1768167039501,-10000.0,0.00022,2]
[401376775,1768167039511,-10000.0,0.00022,2]
[401376776,1768167039520,-10000.0,0.00022,2]
[401376777,1768167039529,-1098.85,0.00022,2]
[401376779,1768167039538,-3359.23,0.00022,14]
[401376781,1768167039547,-544.54268151,0.00022003,2]
[401376782,1768167039556,-157.11492553,0.00022187,5]
[401376784,1768167039566,-151.0,0.000222,6]
[401376786,1768167039575,-841.2,0.00022216,2]
[401376787,1768167039584,-2515.32308142,0.0002223,2]
[401376789,1768167039594,-300.0,0.00022466,2]
[401376791,1768167039603,-151.0,0.000225,6]
[401376792,1768167039612,-1033.47582759,0.000225,2]
[401376794,1768167039625,-2515.32308142,0.00022503,2]
[401376796,1768167039634,-151.0,0.000228,10]
[401376797,1768167039643,-155.57399191,0.00022873,5]
[401376799,1768167039652,-2515.32308142,0.00022881,2]
[401376801,1768167039662,-2030.29667201,0.00022965,2]
[401376802,1768167039670,-151.0,0.00022965,2]
[401376804,1768167039679,-151.0,0.00022965,2]
[401376806,1768167039688,-151.0,0.00022965,2]
[401376807,1768167039698,-151.0,0.00022965,2]
[401376809,1768167039707,-151.0,0.00022965,2]
[401376811,1768167039717,-151.0,0.00022965,2]
[401376813,1768167039726,-156.587,0.00022965,2]
[401376815,1768167039736,-151.0,0.00022965,2]
[401376816,1768167039746,-152.09143049,0.00022965,2]
[401376818,1768167039755,-151.0,0.00022965,2]
[401376820,1768167039765,-151.0,0.00022965,2]
[401376822,1768167039774,-151.0,0.00022965,2]
[401376823,1768167039783,-151.0,0.00022965,2]
[401376825,1768167039793,-151.0,0.00022965,2]
[401376827,1768167039802,-151.0,0.00022965,2]
[401376828,1768167039812,-151.0,0.00022965,2]
[401376830,1768167039820,-151.0,0.00022965,2]
[401376832,1768167039830,-151.0,0.00022965,2]
[401376834,1768167039839,-151.0,0.00022965,2]
[401376835,1768167039848,-151.0,0.00022965,2]
[401376837,1768167039857,-151.0,0.00022965,2]
[401376839,1768167039866,-151.0,0.00022965,2]
[401376841,1768167039875,-151.0,0.00022965,2]
[401376842,1768167039884,-30000.0,0.00022965,2]
[401376844,1768167039894,-151.0,0.00022965,2]
[401376846,1768167039903,-151.0,0.00022965,2]
[401376848,1768167039912,-151.0,0.00022965,2]
[401376849,1768167039921,-151.0,0.00022965,2]
[401376851,1768167039931,-151.0,0.00022965,2]
[401376853,1768167039941,-151.0,0.00022965,2]
[401376855,1768167039950,-151.0,0.00022965,2]
[401376856,1768167039959,-151.0,0.00022965,2]
[401376858,1768167039969,-151.0,0.00022965,2]
[401376860,1768167039979,-151.0,0.00022965,2]
[401376862,1768167039988,-151.0,0.00022965,2]
[401376863,1768167039997,-151.0,0.00022965,2]
[401376865,1768167040006,-151.0,0.00022965,2]
[401376867,1768167040015,-151.0,0.00022965,2]
[401376868,1768167040025,-151.0,0.00022965,2]
[401376870,1768167040034,-151.0,0.00022965,2]
[401376872,1768167040044,-151.0,0.00022965,2]
[401376873,1768167040053,-151.0,0.00022965,2]
[401376875,1768167040063,-151.0,0.00022965,2]
[401376877,1768167040072,-151.0,0.00022965,2]
[401376879,1768167040082,-151.0,0.00023,9]
[401376880,1768167040091,-450.0,0.00023014,2]
[401376882,1768167040101,-2515.32308142,0.0002312,2]
[401376884,1768167040111,-151.0,0.00023146,2]
[401376885,1768167040121,-151.0,0.00023146,2]
[401376887,1768167040130,-151.0,0.000233,8]
[401376889,1768167040140,-2515.32308142,0.00023312,2]
[401376891,1768167040149,-431.088,0.00023407,3]
[401376892,1768167040159,-178.052,0.00023407,3]
[401376894,1768167040168,-841.2,0.0002346,2]
[401376896,1768167040178,-31110.0,0.00023513,2]
[401376897,1768167040187,-600.0,0.00023562,2]
[401376899,1768167040196,-151.0,0.000236,9]
[401376901,1768167040206,-3359.23,0.000236,14]
[401376903,1768167040215,-1000.0,0.00023605,5]
[401376904,1768167040224,-2120.0,0.0002363,2]
[401376906,1768167040232,-17307.9172025,0.00023659,2]
[401376908,1768167040241,-951.8864354,0.00023659,2]
[401376910,1768167040251,-2855.6593063,0.00023659,2]
[401376911,1768167040260,-20707.3608192,0.00023659,2]
[401376913,1768167040269,-582.663486,0.00023659,2]
[401376915,1768167040278,-582.663486,0.00023659,2]
[401376917,1768167040288,-151.0,0.00023659,2]
[401376918,1768167040296,-582.663486,0.00023659,2]
[401376920,1768167040305,-151.0,0.00023659,2]
[401376922,1768167040314,-582.663486,0.00023659,2]
[401376924,1768167040324,-151.0,0.00023659,2]
[401376925,1768167040333,-152.567384,0.00023659,2]
[401376929,1768167040343,-151.0,0.00023659,2]
[401376931,1768167040352,-1311.07653,0.00023659,2]
[401376934,1768167040363,-1311.07653,0.00023659,2]
[401376936,1768167040372,-1311.07653,0.00023659,2]
[401376937,1768167040381,-1311.07653,0.00023659,2]
[401376939,1768167040390,-151.0,0.00023659,2]
[401376941,1768167040399,-981.203249,0.00023659,2]
[401376943,1768167040409,-981.203249,0.00023659,2]
[401376945,1768167040417,-981.203249,0.00023659,2]
[401376946,1768167040427,-981.203249,0.00023659,2]
[401376948,1768167040436,-2120.0,0.00023783,2]
[401376950,1768167040445,-151.0,0.000238,8]
[401376952,1768167040454,-2515.32308142,0.0002382,2]
[401376954,1768167040464,-5476.0,0.00023837,2]
[401376955,1768167040473,-151.54915065,0.00023837,2]
[401376957,1768167040483,-500.0,0.00023837,2]
[401376959,1768167040492,-151.71242224,0.00023837,2]
[401376961,1768167040501,-153.96461209,0.00023837,2]
[401376962,1768167040510,-200.0,0.00023837,2]
[401376964,1768167040519,-500.0,0.00023837,2]
[401376966,1768167040529,-500.0,0.00023837,2]
[401376967,1768167040538,-500.0,0.00023837,2]
[401376969,1768167040547,-250.0,0.00023837,2]
[401376971,1768167040557,-500.0,0.00023837,2]
[401376973,1768167040566,-500.0,0.00023837,2]
[401376975,1768167040575,-210.56827625,0.00023837,2]
[401376976,1768167040584,-170.20314176,0.00023837,2]
[401376978,1768167040593,-276.55594314,0.00023837,2]
[401376980,1768167040603,-500.0,0.00023837,2]
[401376982,1768167040612,-500.0,0.00023837,2]
[401376983,1768167040625,-2263.25436862,0.0002387,2]
[401376985,1768167040638,-2608.13543554,0.0002388,2]
[401376987,1768167040647,-151.0,0.000239,9]
[401376989,1768167040657,-2524.0,0.00023923,2]
[401376991,1768167040667,-2120.0,0.00023973,2]
[401376993,1768167040676,-5476.0,0.00023974,2]
[401376994,1768167040685,-500.0,0.00023974,2]
[401376996,1768167040695,-500.0,0.00023974,2]
[401376998,1768167040704,-500.0,0.00023974,2]
[401377000,1768167040713,-601.55233838,0.00023974,2]
[401377002,1768167040722,-500.0,0.00023974,2]
[401377004,1768167040732,-500.0,0.00023974,2]
[401377005,1768167040741,-500.0,0.00023974,2]
[401377007,1768167040750,-500.0,0.00023974,2]
[401377009,1768167040760,-174.0,0.00023976,2]
[401377011,1768167040769,-151.0,0.0002398,2]
[401377013,1768167040778,-153.032917,0.0002398,2]
[401377014,1768167040787,-160.002934,0.0002398,2]
[401377016,1768167040797,-151.0,0.0002398,2]
[401377018,1768167040806,-151.0,0.0002398,2]
[401377027,1768167040910,-151.0,0.0002398,2]
[401377029,1768167040921,-151.0,0.0002398,2]
[401377031,1768167040931,-151.0,0.0002398,2]
[401377032,1768167040940,-151.0,0.0002398,2]
[401377033,1768167040949,-151.0,0.0002398,2]
[401377034,1768167040958,-155.856993,0.0002398,2]
[401377035,1768167040968,-321.052637,0.0002398,2]
[401377036,1768167040977,-321.052637,0.0002398,2]
[401377037,1768167040986,-321.052637,0.0002398,2]
[401377038,1768167040995,-321.052637,0.0002398,2]
[401377039,1768167041005,-151.0,0.0002398,2]
[401377040,1768167041014,-151.0,0.0002398,2]
[401377042,1768167041023,-151.0,0.0002398,2]
[401377043,1768167041033,-151.0,0.0002398,2]
[401377044,1768167041042,-151.0,0.0002398,2]
[401377045,1768167041051,-151.0,0.0002398,2]
[401377046,1768167041060,-151.0,0.0002398,2]
[401377047,1768167041070,-151.0,0.0002398,2]
[401377048,1768167041079,-216.477355,0.0002398,2]
[401377049,1768167041088,-216.477355,0.0002398,2]
[401377050,1768167041097,-216.477355,0.0002398,2]
[401377051,1768167041106,-216.477355,0.0002398,2]
[401377052,1768167041115,-151.0,0.0002398,2]
[401377053,1768167041125,-151.0,0.0002398,2]
[401377054,1768167041134,-151.0,0.0002398,2]
[401377055,1768167041144,-194.480203,0.0002398,2]
[401377056,1768167041153,-194.480203,0.0002398,2]
[401377057,1768167041162,-194.480203,0.0002398,2]
[401377058,1768167041172,-194.480203,0.0002398,2]
[401377059,1768167041181,-151.0,0.0002398,2]
[401377060,1768167041190,-151.0,0.0002398,2]
[401377061,1768167041200,-151.0,0.0002398,2]
[401377062,1768167041210,-151.0,0.0002398,2]
[401377063,1768167041219,-399.505207,0.0002398,2]
[401377064,1768167041229,-399.505207,0.0002398,2]
[401377065,1768167041239,-399.505207,0.0002398,2]
[401377066,1768167041248,-399.505207,0.0002398,2]
[401377067,1768167041256,-151.0,0.0002398,2]
[401377068,1768167041266,-151.0,0.0002398,2]
[401377069,1768167041275,-151.0,0.0002398,2]
[401377070,1768167041285,-151.0,0.0002398,2]
[401377071,1768167041294,-151.0,0.0002398,2]
[401377072,1768167041304,-226.11193,0.0002398,2]
[401377073,1768167041313,-151.0,0.0002398,2]
[401377074,1768167041323,-151.0,0.0002398,2]
[401377075,1768167041333,-151.0,0.0002398,2]
[401377076,1768167041342,-1175.971694,0.0002398,2]
[401377077,1768167041351,-1175.971694,0.0002398,2]
[401377078,1768167041361,-1175.971694,0.0002398,2]
[401377079,1768167041370,-1175.971694,0.0002398,2]
[401377080,1768167041380,-151.0,0.0002398,2]
[401377081,1768167041390,-177.552931,0.0002398,2]
[401377082,1768167041399,-319.326659,0.0002398,2]
[401377083,1768167041409,-177.552931,0.0002398,2]
[401377084,1768167041418,-319.326659,0.0002398,2]
[401377085,1768167041428,-151.0,0.0002398,2]
[401377086,1768167041438,-177.552931,0.0002398,2]
[401377087,1768167041448,-319.326659,0.0002398,2]
[401377088,1768167041457,-151.0,0.0002398,2]
[401377089,1768167041466,-177.552931,0.0002398,2]
[401377090,1768167041476,-319.326659,0.0002398,2]
[401377091,1768167041485,-151.0,0.0002398,2]
[401377092,1768167041496,-151.0,0.0002398,2]
[401377093,1768167041505,-151.0,0.0002398,2]
[401377094,1768167041514,-582.663486,0.0002398,2]
[401377095,1768167041524,-582.663486,0.0002398,2]
[401377096,1768167041533,-151.0,0.0002398,2]
[401377097,1768167041543,-582.663486,0.0002398,2]
[401377098,1768167041552,-271.744506,0.0002398,2]
[401377099,1768167041561,-582.663486,0.0002398,2]
[401377100,1768167041570,-175.972983,0.0002398,2]
[401377102,1768167041579,-151.0,0.0002398,2]
[401377104,1768167041588,-1311.07653,0.0002398,2]
[401377106,1768167041597,-1311.07653,0.0002398,2]
[401377107,1768167041606,-1311.07653,0.0002398,2]
[401377109,1768167041616,-1311.07653,0.0002398,2]
[401377111,1768167041627,-500.0,0.0002398,5]
[401377113,1768167041636,-496.47127164,0.0002398,5]
[401377115,1768167041646,-151.0,0.0002398,5]
[401377117,1768167041655,-250.0,0.0002398,5]
[401377119,1768167041664,-500.0,0.0002398,5]
[401377120,1768167041675,-514.84070869,0.0002398,5]
[401377122,1768167041684,-250.0,0.0002398,5]
[401377124,1768167041694,-296.59935167,0.0002398,5]
[401377126,1768167041704,-533.88981491,0.0002398,5]
[401377128,1768167041713,-500.0,0.0002398,5]
[401377130,1768167041722,-553.64373807,0.0002398,5]
[401377131,1768167041731,-500.0,0.0002398,5]
[401377133,1768167041741,-574.12855637,0.0002398,5]
[401377135,1768167041750,-151.0,0.0002398,5]
[401377137,1768167041759,-250.0,0.0002398,5]
[401377139,1768167041768,-500.0,0.0002398,5]
[401377141,1768167041778,-595.37131296,0.0002398,5]
[401377143,1768167041787,-151.0,0.0002398,5]
[401377145,1768167041795,-250.0,0.0002398,5]
[401377146,1768167041805,-250.0,0.0002398,5]
[401377148,1768167041814,-500.0,0.0002398,5]
[401377150,1768167041823,-151.0,0.0002398,2]
[401377152,1768167041832,-617.40005154,0.0002398,5]
[401377154,1768167041841,-250.0,0.0002398,5]
[401377156,1768167041850,-250.0,0.0002398,5]
[401377157,1768167041859,-151.0,0.0002398,5]
[401377159,1768167041868,-500.0,0.0002398,5]
[401377161,1768167041877,-640.24385345,0.0002398,5]
[401377163,1768167041886,-250.0,0.0002398,5]
[401377165,1768167041895,-250.0,0.0002398,5]
[401377167,1768167041904,-151.0,0.0002398,5]
[401377169,1768167041914,-500.0,0.0002398,5]
[401377171,1768167041923,-663.93287602,0.0002398,5]
[401377172,1768167041932,-250.0,0.0002398,5]
[401377174,1768167041943,-151.0,0.0002398,5]
[401377176,1768167041953,-500.0,0.0002398,5]
[401377178,1768167041963,-151.0,0.0002398,5]
[401377180,1768167041972,-250.0,0.0002398,5]
[401377181,1768167041981,-265.04542702,0.0002398,5]
[401377183,1768167041991,-500.0,0.0002398,5]
[401377185,1768167042000,-151.0,0.0002398,5]
[401377187,1768167042009,-688.49839244,0.0002398,5]
[401377188,1768167042018,-151.0,0.0002398,5]
[401377190,1768167042028,-250.0,0.0002398,5]
[401377192,1768167042037,-500.0,0.0002398,5]
[401377194,1768167042047,-713.97283296,0.0002398,5]
[401377196,1768167042056,-151.0,0.0002398,5]
[401377197,1768167042065,-151.0,0.0002398,5]
[401377199,1768167042074,-252.94566259,0.0002398,5]
[401377200,1768167042083,-500.0,0.0002398,5]
[401377202,1768167042092,-241.8234162,0.0002398,5]
[401377204,1768167042101,-740.38982778,0.0002398,5]
[401377205,1768167042111,-151.0,0.0002398,5]
[401377207,1768167042120,-500.0,0.0002398,5]
[401377209,1768167042130,-151.0,0.0002398,5]
[401377211,1768167042139,-767.7842514,0.0002398,5]
[401377213,1768167042149,-500.0,0.0002398,5]
[401377214,1768167042158,-796.19226871,0.0002398,5]
[401377216,1768167042168,-151.0,0.0002398,5]
[401377218,1768167042178,-500.0,0.0002398,5]
[401377220,1768167042187,-151.0,0.0002398,5]
[401377222,1768167042198,-825.65138265,0.0002398,5]
[401377224,1768167042207,-2398.4119403,0.0002398,5]
[401377225,1768167042216,-981.203249,0.0002398,2]
[401377227,1768167042226,-250.0,0.0002398,5]
[401377229,1768167042235,-151.0,0.0002398,5]
[401377231,1768167042244,-2487.15318209,0.0002398,5]
[401377233,1768167042254,-250.0,0.0002398,5]
[401377234,1768167042264,-151.0,0.0002398,5]
[401377236,1768167042273,-2579.17784983,0.0002398,5]
[401377238,1768167042282,-250.0,0.0002398,5]
[401377240,1768167042291,-981.203249,0.0002398,2]
[401377242,1768167042300,-151.0,0.0002398,5]